bitfinex-derivatives/quotes_ETHF0:USTF0_20250224
["timestamp","ask_amount","ask_price","bid_price","bid_amount"]
[1740396727037,3.2078,2690.5,2690.3,0.00557859]
[1740396727238,0.5402,2690.7,2690.3,0.00557859]
[1740396727540,3.2078,2690.8,2690.3,0.00557859]
[1740396728133,0.5892,2691.5,2690.5,3.2078]
[1740396728134,3.2078,2691.1,2690.5,3.2078]
[1740396728330,0.5892,2691.5,2690.6,0.5443]
[1740396728539,3.011,2691.7,2691.1,3.2078]
[1740396729047,0.5892,2691.6,2691.1,3.2078]
[1740396732146,3.2078,2691.5,2690.8,3.5012]
[1740396732348,3.2078,2691.2,2690.8,2.954]
[1740396732541,3.011,2691.1,2690.8,2.954]
[1740396732848,3.011,2691.1,2690.6,0.5443]
[1740396733048,3.5783,2691.1,2690.6,0.5443]
[1740396733638,3.5783,2691.1,2690.4,3.2078]
[1740396734641,3.2078,2690.9,2690.0,3.7486]
[1740396734847,3.2078,2690.6,2690.0,3.7486]
[1740396735150,6.2188,2690.6,2690.0,3.7486]
[1740396735452,0.5498,2690.5,2690.0,3.7486]
[1740396735638,6.2188,2690.6,2690.0,3.7486]
[1740396736239,3.011,2690.6,2690.0,3.7486]
[1740396738344,6.2188,2690.6,2690.0,0.5408]
[1740396742456,3.012,2690.5,2690.0,0.5408]
[1740396742952,0.5813,2690.4,2689.8,0.5875]
[1740396743656,0.5813,2690.4,2689.9,0.5758]
[1740396744059,3.012,2690.5,2689.9,0.5758]
[1740396744451,6.2288,2690.6,2689.9,0.5758]
[1740396745662,6.2288,2690.6,2690.0,0.5594]
[1740396747555,3.2078,2690.6,2690.0,3.7672]
[1740396751058,3.2078,2690.6,2690.0,3.2078]
[1740396753260,3.012,2690.5,2690.0,3.2078]
[1740396754161,11.999,2690.5,2689.6,3.2078]
[1740396754360,3.2078,2690.1,2689.6,3.2078]
[1740396754560,3.5646,2690.0,2689.6,3.2078]
[1740396754961,4.1549,2690.0,2689.6,3.2078]
[1740396756963,4.1549,2690.0,2689.5,0.00557859]
[1740396761368,3.2078,2689.8,2689.5,0.00557859]
[1740396761575,0.60245103,2689.7,2688.4,3.7784]
[1740396761764,3.2078,2689.1,2688.4,0.5706]
[1740396762070,3.006,2689.0,2688.4,0.5706]
[1740396762269,3.5742,2689.0,2688.4,0.5706]
[1740396762870,3.5742,2689.0,2688.4,0.57617859]
[1740396763064,3.2078,2688.8,2688.4,0.00557859]
[1740396763369,0.5766,2688.7,2688.4,0.00557859]
[1740396763560,3.007,2688.6,2688.4,0.00557859]
[1740396763765,3.2078,2688.5,2688.4,0.00557859]
[1740396763965,3.7904,2688.5,2688.4,0.00557859]
[1740396766361,3.7904,2688.5,2687.8,0.5827]
[1740396767473,3.7904,2688.5,2687.9,0.00557859]
[1740396768768,3.7904,2688.5,2687.9,3.21337859]
[1740396768769,3.2078,2688.5,2687.9,3.21337859]
[1740396769073,3.006,2688.6,2687.9,3.21337859]
[1740396771272,3.5813,2688.6,2687.9,3.21337859]
[1740396775377,0.00557859,2688.7,2687.9,3.21337859]
[1740396775685,2.999,2688.6,2687.9,3.21337859]
[1740396775882,5.986,2688.6,2687.9,3.21337859]
[1740396776580,0.5851,2688.5,2687.9,3.21337859]
[1740396777181,0.5583,2688.4,2687.9,3.21337859]
[1740396781874,2.987,2688.6,2687.9,3.21337859]
[1740396782082,0.00557859,2688.7,2688.2,3.2078]
[1740396782277,0.00557859,2688.7,2688.3,1.7507]
[1740396783584,0.00557859,2688.7,2688.3,1.1719]
[1740396785477,2.995,2689.2,2688.5,3.2078]
[1740396785684,3.2078,2689.5,2688.6,0.5723]
[1740396785883,2.997,2689.4,2688.6,0.5723]
[1740396786685,0.00557859,2689.3,2688.6,0.5723]
[1740396787386,3.2078,2689.2,2688.6,0.5723]
[1740396789984,0.5729,2689.1,2688.6,0.5723]
[1740396790183,2.993,2689.0,2688.6,0.5723]
[1740396792794,0.00557859,2689.3,2688.8,3.2078]
[1740396792990,0.00557859,2689.3,2688.9,0.5674]
[1740396793289,0.00557859,2689.3,2689.0,0.5843]
[1740396793689,3.2078,2689.5,2689.0,0.5843]
[1740396793888,0.27854072,2690.4,2689.1,3.2078]
[1740396793889,2.993,2689.9,2689.1,3.2078]
[1740396794093,2.993,2689.9,2689.2,0.5534]
[1740396794690,3.2078,2689.5,2689.0,0.5843]
[1740396794997,3.21337859,2689.8,2689.3,0.00557859]
[1740396795197,3.2078,2689.5,2689.3,0.00557859]
[1740396795498,2.999,2689.4,2689.3,0.00557859]
[1740396795989,3.05895853,2689.4,2689.3,0.00557859]
[1740396796293,2.999,2689.4,2689.3,0.00557859]
[1740396796492,3.05895914,2689.4,2689.3,0.00557859]
[1740396797796,3.05895914,2689.4,2688.8,3.2078]
[1740396797995,0.05995914,2689.3,2688.8,3.2078]
[1740396798397,0.5771,2689.2,2688.8,3.2078]
[1740396799397,3.7849,2689.2,2688.7,0.00557859]
[1740396800600,0.05996577,2689.1,2688.7,0.00557859]
[1740396800801,3.2078,2688.9,2688.7,0.00557859]
[1740396808592,0.05997482,2688.8,2688.7,0.00557859]
[1740396810098,0.05997482,2688.8,2688.2,3.2078]
[1740396810099,6.05997482,2688.8,2688.2,3.2078]
[1740396810297,0.60407482,2688.7,2688.2,3.2078]
[1740396810504,3.05097482,2688.6,2688.2,3.2078]
[1740396810706,2.991,2688.6,2688.2,3.2078]
[1740396811299,6.1988,2688.6,2688.1,0.00557859]
[1740396811799,0.05998046,2688.5,2688.1,0.00557859]
[1740396811998,0.62978046,2688.5,2688.1,0.00557859]
[1740396812203,0.5698,2688.5,2688.1,0.00557859]
[1740396813404,3.2078,2688.3,2688.1,0.00557859]
[1740396813704,2.991,2688.2,2688.1,0.00557859]
[1740396817312,3.5825,2688.2,2688.1,0.00557859]
[1740396818822,3.64248629,2688.2,2688.1,0.00557859]
[1740396819307,3.5825,2688.2,2688.1,0.00557859]
[1740396819611,3.64248846,2688.2,2688.1,0.00557859]
[1740396819907,3.64248846,2688.2,2687.6,1.7014]
[1740396820111,3.5825,2688.2,2687.6,1.7014]
[1740396820608,3.7907,2688.3,2687.6,1.7014]
[1740396820609,2.991,2688.1,2687.6,1.7014]
[1740396821110,2.991,2688.1,2687.6,1.70511908]
[1740396823012,0.00557859,2688.4,2687.8,3.2078]
[1740396823210,2.99657859,2688.4,2687.8,3.2078]
[1740396824813,0.00557859,2688.4,2687.8,3.2078]
[1740396825015,6.1988,2688.6,2687.9,2.954]
[1740396825214,6.1988,2688.6,2687.8,6.1988]
[1740396825816,6.1988,2688.6,2688.1,3.2078]
[1740396826109,6.20437859,2688.6,2688.2,1.0869]
[1740396826316,3.21337859,2688.6,2688.2,4.0409]
[1740396828107,3.21337859,2688.6,2688.3,0.5891]
[1740396832718,3.21337859,2688.6,2688.2,0.5476]
[1740396832916,0.05997852,2688.5,2688.2,0.5476]
[1740396833117,2.991,2688.4,2688.2,0.5476]
[1740396833620,3.2078,2688.3,2687.8,4.3285]
[1740396833812,3.2078,2688.3,2687.8,4.8815]
[1740396834211,0.5568,2688.2,2687.8,4.8815]
[1740396834810,0.5568,2688.2,2687.8,4.3473]
[1740396835717,3.2078,2688.0,2687.6,0.00371908]
[1740396835913,2.991,2687.9,2687.6,0.00371908]
[1740396838824,3.2078,2687.7,2687.6,0.00371908]
[1740396839123,3.26779956,2687.7,2687.1,3.2078]
[1740396839416,3.26779956,2687.7,2685.2,12.23934535]
[1740396839417,0.5672,2687.6,2687.0,1.1277]
[1740396839723,2.991,2687.5,2687.0,1.1277]
[1740396840221,2.991,2687.5,2687.0,1.13327859]
[1740396841019,0.5672,2687.6,2687.0,1.13327859]
[1740396841218,2.991,2687.5,2687.0,1.13327859]
[1740396841426,0.5672,2687.6,2687.1,3.2078]
[1740396841630,6.1988,2687.7,2687.1,3.7491]
[1740396844020,3.2078,2687.4,2687.0,1.13327859]
[1740396844220,3.5567,2687.3,2687.0,1.13327859]
[1740396846224,3.5567,2687.3,2687.0,0.00557859]
[1740396846429,3.7638,2687.2,2687.0,0.00557859]
[1740396847830,3.2078,2687.2,2687.0,0.00557859]
[1740396848030,2.991,2687.3,2687.0,0.00557859]
[1740396848232,2.991,2687.4,2687.0,0.00557859]
[1740396848628,0.5535,2687.3,2687.0,0.00557859]
[1740396853736,3.547,2687.4,2687.0,0.00557859]
[1740396853938,3.2078,2687.5,2687.0,0.00557859]
[1740396854139,2.992,2687.7,2687.1,3.2078]
[1740396854434,2.992,2687.7,2687.2,1.746]
[1740396858339,3.5785,2687.7,2687.2,1.746]
[1740396860739,2.992,2687.7,2687.2,1.746]
[1740396860939,2.992,2687.8,2687.4,3.2078]
[1740396861535,3.7553,2688.1,2687.4,3.2078]
[1740396861734,0.5475,2688.1,2687.4,3.2078]
[1740396861932,2.992,2688.1,2687.4,3.2078]
[1740396862245,2.992,2688.2,2687.7,3.2078]
[1740396862440,2.992,2688.2,2687.8,1.6995]
[1740396862640,3.5395,2688.5,2688.0,3.2078]
[1740396865550,6.7473,2688.5,2688.0,3.2078]
[1740396868445,6.1988,2688.5,2688.0,3.2078]
[1740396868845,3.2078,2688.5,2688.0,3.2078]
[1740396869844,0.00557859,2688.6,2688.0,3.2078]
[1740396872450,0.00557859,2688.6,2688.3,3.2078]
[1740396872649,0.00557859,2688.6,2688.4,1.7204]
[1740396876949,0.00557859,2688.6,2688.4,4.6744]
[1740396879853,3.747,2689.2,2688.5,2.99]
[1740396880057,0.5625,2689.3,2688.7,3.2078]
[1740396881156,0.56807859,2689.3,2688.7,3.21337859]
[1740396881348,1.16027859,2689.3,2688.7,3.21337859]
[1740396882354,0.59777859,2689.3,2688.7,3.21337859]
[1740396882653,0.00557859,2689.3,2689.0,3.2078]
[1740396882860,0.00557859,2689.3,2689.1,1.1158]
[1740396886153,0.00557859,2689.3,2688.7,3.21337859]
[1740396886458,0.00557859,2689.3,2688.8,0.5462]
[1740396887554,0.00557859,2689.3,2688.9,0.5763]
[1740396891759,2.99457859,2689.3,2688.8,0.5462]
[1740396892764,2.989,2689.2,2688.8,0.5462]
[1740396896960,1.1626,2689.1,2688.8,0.5462]
[1740396899673,1.1626,2689.1,2688.7,3.21337859]
[1740396900862,0.05996755,2689.0,2688.7,3.21337859]
[1740396901462,3.26776755,2689.0,2688.7,0.00557859]
[1740396901666,0.05996755,2688.9,2688.7,0.00557859]
[1740396901870,2.989,2688.8,2688.7,0.00557859]
[1740396902870,3.2078,2689.0,2688.7,0.00557859]
[1740396903073,2.989,2688.9,2688.7,0.00557859]
[1740396903567,3.2078,2689.0,2688.7,0.00557859]
[1740396903776,6.1968,2689.0,2688.7,0.00557859]
[1740396907576,3.2078,2689.0,2688.7,0.00557859]
[1740396910879,4.1516,2689.1,2688.7,0.00557859]
[1740396910880,0.00557859,2689.3,2688.9,3.2078]
[1740396911076,0.00557859,2689.3,2689.0,1.1082]
[1740396911381,0.00557859,2689.3,2689.1,0.5563]
[1740396914278,0.00557859,2689.3,2689.2,3.2078]
[1740396914690,0.00557859,2689.3,2689.1,0.5563]
[1740396917794,0.00557859,2689.3,2689.2,0.5759]
[1740396917990,0.00557859,2689.3,2689.2,3.7837]
[1740396919699,0.00557859,2689.3,2689.2,3.2078]
[1740396922300,0.00557859,2689.3,2689.1,1.1322]
[1740396922489,0.00557859,2689.3,2688.9,3.2078]
[1740396922693,0.00557859,2689.3,2689.0,0.5508]
[1740396923203,1.15977859,2689.3,2689.0,0.5508]
[1740396923401,0.5569,2689.2,2689.0,0.5508]
[1740396923597,0.5569,2689.2,2688.8,2.954]
[1740396924599,0.5569,2689.2,2688.6,1.111]
[1740396924802,3.2078,2689.1,2688.5,3.2078]
[1740396925099,2.988,2689.0,2688.5,3.2078]
[1740396925288,2.988,2689.0,2688.6,0.572]
[1740396925493,0.5483,2688.9,2688.6,0.572]
[1740396925694,2.988,2689.0,2688.6,0.572]
[1740396925893,3.2078,2689.1,2688.7,1.17497859]
[1740396926101,6.1958,2689.1,2688.7,1.17497859]
[1740396926692,3.2078,2689.1,2688.7,1.17497859]
[1740396926998,0.00557859,2689.3,2688.8,3.2078]
[1740396928499,0.00557859,2689.3,2689.1,3.2078]
[1740396928706,0.00557859,2689.3,2689.2,1.1635]
[1740396929196,0.00557859,2689.3,2689.2,1.7339]
[1740396932299,3.2078,2690.0,2689.2,10.7219]
[1740396932508,3.2078,2690.0,2689.5,3.2078]
[1740396932697,3.2078,2690.0,2689.6,0.5466]
[1740396932903,0.5345,2690.3,2689.8,3.2078]
[1740396933099,0.5345,2690.3,2689.8,3.5008194]
[1740396933300,0.54007859,2690.3,2689.8,3.5008194]
[1740396933500,0.54007859,2690.3,2689.8,3.2078]
[1740396935209,0.5561,2690.2,2689.8,3.2078]
[1740396936311,2.987,2690.1,2689.8,3.2078]
[1740396936512,0.5682,2690.0,2689.8,3.2078]
[1740396938113,0.5682,2690.0,2689.4,1.1224]
[1740396944618,3.2078,2689.8,2689.3,3.2078]
[1740396944924,3.5569,2689.7,2689.1,1.1532]
[1740396945121,4.1031,2689.7,2689.1,1.1532]
[1740396945420,0.05995255,2689.6,2689.1,1.1532]
[1740396945623,3.2078,2689.5,2689.0,3.2078]
[1740396945922,3.7725,2689.5,2689.0,3.2078]
[1740396949728,0.05995739,2689.4,2689.0,3.2078]
[1740396950028,2.987,2689.3,2689.0,3.2078]
[1740396950223,0.5364,2689.2,2689.0,3.2078]
[1740396950431,1.0827,2689.2,2689.0,3.2078]
[1740396952828,2.987,2689.1,2689.0,3.2078]
[1740396954929,2.987,2689.1,2688.8,0.5814]
[1740396956030,0.5559,2689.0,2688.8,0.5814]
[1740396959532,2.987,2689.0,2688.8,0.5814]
[1740396960224,3.2078,2689.2,2688.8,0.5814]
[1740396963929,1.143,2689.1,2688.8,0.5814]
[1740396964130,2.987,2689.0,2688.8,0.5814]
[1740396971841,3.5693,2689.0,2688.8,0.5814]
[1740396972241,3.5693,2689.0,2688.7,0.00557859]
[1740396972436,4.1305,2689.0,2688.7,0.00557859]
[1740396974346,3.2078,2688.8,2688.0,3.2078]
[1740396974541,3.2078,2688.8,2688.2,0.5878]
[1740396974747,0.5555,2688.7,2688.2,0.5878]
[1740396974934,2.987,2688.6,2688.2,0.5878]
[1740396975541,3.2078,2688.5,2688.2,0.5878]
[1740396975951,3.7639,2688.5,2688.2,0.5878]
[1740396977250,4.3128,2688.5,2688.2,0.5878]
[1740396978945,4.3128,2688.5,2688.1,0.57187859]
[1740396979442,4.3128,2688.5,2688.1,0.00557859]
[1740396979648,0.05998201,2688.4,2688.1,0.00557859]
[1740396980042,0.5405,2688.3,2688.1,0.00557859]
[1740396980243,6.1948,2688.2,2688.1,0.00557859]
[1740396982258,6.25478894,2688.2,2688.1,0.00557859]
[1740396982461,6.25478866,2688.2,2688.1,0.00557859]
[1740396983068,6.1948,2688.2,2688.1,0.00557859]
[1740396984769,6.25478997,2688.2,2687.4,3.2078]
[1740396984969,3.2078,2687.9,2687.5,0.5686]
[1740396985162,2.987,2687.8,2687.5,0.5686]
[1740396985470,3.5218,2687.8,2687.5,0.5686]
[1740396986866,3.5218,2687.8,2687.4,3.21337859]
[1740396987366,0.05999988,2687.7,2687.4,3.21337859]
[1740396987574,3.2078,2687.6,2687.4,0.00557859]
[1740396987773,0.5889,2687.5,2687.4,0.00557859]
[1740396987969,1.167,2687.5,2687.4,0.00557859]
[1740396988280,1.22700681,2687.5,2687.1,0.5641]
[1740396988477,3.2078,2687.3,2687.1,0.5641]
[1740396988869,3.2078,2687.3,2686.9,3.2078]
[1740396990678,3.2078,2687.3,2686.8,0.5714]
[1740396990679,0.06001147,2687.2,2686.4,3.2078]
[1740396990875,0.06001147,2687.2,2686.5,1.1257]
[1740396991176,0.00557859,2687.1,2686.5,1.1257]
[1740396991372,2.987,2687.0,2686.5,1.7144]
[1740396991873,0.00557859,2687.1,2686.5,1.7144]
[1740396992079,3.2078,2687.7,2686.7,3.2078]
[1740396992578,3.2078,2687.1,2686.7,3.2078]
[1740396992877,3.2078,2687.1,2686.5,4.7014]
[1740396993277,3.21337859,2687.1,2686.5,1.71997859]
[1740396994772,3.2078,2687.7,2686.7,3.2078]
[1740396994977,3.2078,2687.7,2687.0,3.2078]
[1740396995176,3.2078,2687.7,2687.1,42.4306]
[1740396995881,3.2078,2687.7,2687.1,1.6306]
[1740396996080,3.21337859,2687.7,2687.1,1.6306]
[1740396996282,6.20037859,2687.7,2687.1,1.6306]
[1740396996472,3.2078,2687.4,2687.1,1.6306]
[1740396996672,3.2078,2687.4,2687.1,1.0834]
[1740397001586,6.1948,2687.4,2687.1,1.0834]
[1740397005188,3.2078,2687.4,2687.1,1.0834]
[1740397006696,0.00557859,2687.7,2687.1,1.0834]
[1740397007290,0.00557859,2687.7,2687.2,40.8]
[1740397007590,0.00557859,2687.7,2687.3,0.5902]
[1740397010683,3.2078,2687.5,2687.1,1.0834]
[1740397010988,3.546,2687.4,2687.0,6.1618]
[1740397012192,3.546,2687.4,2687.0,3.2078]
[1740397012691,0.06000846,2687.3,2687.0,3.2078]
[1740397012891,3.546,2687.4,2687.0,3.2078]
[1740397013093,0.579,2687.2,2687.0,3.2078]
[1740397014292,3.546,2687.4,2687.0,3.2078]
[1740397015186,0.06000858,2687.3,2687.0,3.2078]
[1740397015588,0.5592,2687.2,2687.0,3.2078]
[1740397015790,0.5769,2687.1,2687.0,3.2078]
[1740397019593,0.5769,2687.1,2686.7,4.2895]
[1740397019794,2.987,2687.0,2686.7,4.2895]
[1740397019991,2.987,2687.0,2686.7,3.2078]
[1740397020187,0.5871,2686.9,2686.7,3.2078]
[1740397020795,2.987,2687.0,2686.7,3.2078]
[1740397020991,2.987,2687.0,2686.8,0.592]
[1740397021392,2.987,2687.0,2686.8,1.131]
[1740397023195,2.987,2687.0,2686.7,3.2078]
[1740397023499,0.5356,2686.9,2686.7,3.2078]
[1740397023997,3.7434,2686.9,2686.4,4.2844]
[1740397025892,3.2078,2686.6,2685.6,3.2078]
[1740397026099,3.2078,2686.3,2685.8,0.5376]
[1740397026300,6.1948,2686.3,2685.8,0.5376]
[1740397026497,0.5351,2686.2,2685.8,0.5376]
[1740397030404,0.5351,2686.2,2685.7,0.58027859]
[1740397031099,0.5351,2686.2,2685.8,0.5413]
[1740397034005,3.2078,2686.0,2685.8,0.5413]
[1740397034202,2.988,2685.9,2685.7,0.58027859]
[1740397034400,3.5661,2685.9,2685.7,0.00557859]
[1740397034700,4.1208,2685.9,2685.7,0.00557859]
[1740397035099,3.5661,2685.9,2685.7,0.00557859]
[1740397035506,3.2078,2686.0,2685.7,0.00557859]
[1740397035707,2.988,2685.9,2685.7,0.00557859]
[1740397038703,0.5818,2685.8,2685.7,0.00557859]
[1740397040603,2.988,2685.9,2685.7,0.00557859]
[1740397042804,2.988,2685.8,2685.7,0.00557859]
[1740397043505,3.2078,2686.0,2685.7,0.00557859]
[1740397043707,6.1958,2686.0,2685.7,0.00557859]
[1740397044917,3.2078,2686.0,2685.7,0.00557859]
[1740397053316,0.00557859,2686.3,2685.7,0.00557859]
[1740397053517,0.00557859,2686.3,2685.7,1.14117859]
[1740397054222,0.55277859,2686.3,2685.7,1.14117859]
[1740397058224,0.00557859,2686.3,2685.7,1.14117859]
[1740397065432,0.00557859,2686.3,2685.9,3.2078]
[1740397065629,0.00557859,2686.3,2686.0,0.5591]
[1740397066132,0.00557859,2686.3,2686.1,0.5627]
[1740397066325,0.00557859,2686.3,2686.2,0.5829]
[1740397067935,0.00557859,2686.3,2686.1,0.5627]
[1740397069428,0.00557859,2686.3,2686.0,0.5591]
[1740397070029,0.00557859,2686.3,2685.9,3.2078]
[1740397070230,0.00557859,2686.3,2685.8,0.5744]
[1740397070231,3.2078,2686.1,2685.8,0.5744]
[1740397070431,1.7216,2686.0,2685.8,0.5744]
[1740397072034,1.7216,2686.0,2685.7,0.56277859]
[1740397072236,1.7216,2686.0,2685.7,0.00557859]
[1740397073729,0.5617,2686.0,2685.7,0.00557859]
[1740397082437,2.987,2685.9,2685.7,0.00557859]
[1740397091746,3.2078,2685.8,2685.7,0.00557859]
[1740397093747,9.26784825,2685.8,2685.1,3.2078]
[1740397093950,3.2078,2685.5,2685.1,3.2078]
[1740397094150,3.5732,2685.4,2685.1,3.2078]
[1740397094550,3.2078,2685.2,2684.7,1.125]
[1740397094749,1.1452,2685.1,2684.7,1.125]
[1740397094945,2.986,2685.0,2684.7,1.125]
[1740397095152,3.5732,2685.0,2684.5,3.505793]
[1740397096156,3.5732,2685.0,2684.5,3.2078]
[1740397096358,3.2078,2684.8,2684.3,1.125]
[1740397096759,3.21337859,2684.8,2684.3,1.125]
[1740397098254,3.21337859,2684.8,2684.1,3.2078]
[1740397098654,2.987,2684.7,2683.8,3.2078]
[1740397098857,3.2078,2684.5,2683.8,3.2078]
[1740397099055,3.2078,2684.5,2683.9,0.5686]
[1740397099253,3.2078,2684.5,2684.0,0.5545]
[1740397099557,3.2078,2684.5,2684.1,0.5789]
[1740397105564,3.2078,2684.5,2683.9,0.5686]
[1740397106261,0.06008185,2684.4,2683.9,0.5686]
[1740397108069,0.06008185,2684.4,2684.0,0.5536]
[1740397108966,3.2078,2684.5,2684.0,0.5536]
[1740397109262,0.06008187,2684.4,2684.0,1.1003]
[1740397109967,0.06008187,2684.4,2684.0,0.5536]
[1740397110977,3.2078,2684.5,2684.0,0.5536]
[1740397111164,0.06008097,2684.4,2684.0,0.5536]
[1740397112772,3.2078,2684.5,2684.0,0.5536]
[1740397113167,2.987,2684.4,2684.0,0.5536]
[1740397117469,3.2078,2684.5,2684.0,0.5536]
[1740397117673,0.00557859,2684.8,2684.3,3.2078]
[1740397117875,0.00557859,2684.8,2684.4,1.12]
[1740397118077,0.00557859,2684.8,2684.6,3.2078]
[1740397119867,2.987,2685.4,2684.6,3.2078]
[1740397120670,2.987,2685.4,2684.9,3.2078]
[1740397120870,0.00557859,2685.2,2685.0,1.1254]
[1740397122979,0.00557859,2685.2,2685.1,0.5902]
[1740397128381,3.21337859,2685.2,2685.0,0.5567]
[1740397128877,1.0857,2685.1,2684.8,0.85693123]
[1740397129079,1.0857,2685.1,2684.8,1.43053123]
[1740397130382,0.00557859,2685.2,2684.8,1.43053123]
[1740397130686,0.00557859,2685.2,2684.9,3.2078]
[1740397132276,0.00557859,2685.2,2684.8,1.43053123]
[1740397132877,3.21337859,2685.2,2684.8,1.43053123]
[1740397133282,0.00557859,2685.2,2684.8,1.43053123]
[1740397133978,0.00557859,2685.2,2684.9,3.2078]
[1740397144179,3.2078,2685.5,2684.9,6.1618]
[1740397144382,3.2078,2685.5,2684.9,3.2078]
[1740397144790,3.2078,2685.5,2685.0,2.985]
[1740397145185,3.2078,2685.8,2685.2,3.2078]
[1740397145394,3.2078,2685.8,2685.3,1.0857]
[1740397145689,3.2078,2685.8,2685.3,1.6696]
[1740397146791,3.21337859,2685.8,2685.3,1.6696]
[1740397149090,3.21337859,2685.8,2685.4,2.985]
[1740397149395,2.984,2686.6,2685.5,3.2078]
[1740397149593,0.5591,2686.5,2685.9,3.2078]
[1740397149794,0.5591,2686.5,2686.0,1.6412]
[1740397152601,4.3236,2686.4,2686.0,1.6412]
[1740397152994,3.2078,2686.4,2686.0,1.6412]
[1740397154095,0.56467859,2686.5,2686.0,1.6412]
[1740397155303,1.1357,2686.4,2686.0,1.1035]
[1740397155698,0.56467859,2686.5,2686.0,1.1035]
[1740397155905,1.1357,2686.4,2686.0,1.1035]
[1740397156302,4.3435,2686.4,2686.0,1.1035]
[1740397160013,4.3435,2686.4,2685.9,3.2078]
[1740397160514,2.983,2686.3,2685.9,3.2078]
[1740397161703,2.983,2686.3,2685.4,0.5647]
[1740397162017,3.2078,2686.0,2685.3,3.2078]
[1740397162211,4.7052,2685.9,2685.3,3.2078]
[1740397164914,4.7052,2685.9,2685.4,0.5764]
[1740397166716,1.7222,2685.9,2685.4,0.5764]
[1740397170021,1.7222,2685.9,2685.4,3.7842]
[1740397170524,1.7222,2685.9,2685.4,0.5764]
[1740397170722,1.7222,2685.9,2685.4,3.7842]
[1740397171022,4.7052,2685.9,2685.4,3.2078]
[1740397174925,4.7052,2685.9,2685.2,1.0783]
[1740397180624,3.2078,2686.3,2685.4,3.2078]
[1740397180825,0.5566,2686.2,2685.7,3.2078]
[1740397181022,0.5566,2686.2,2685.8,1.1035]
[1740397181829,3.2078,2686.3,2685.8,4.0575]
[1740397184827,4.6642,2686.4,2685.8,4.0575]
[1740397184828,1.1184,2686.4,2685.8,4.0575]
[1740397185434,0.00557859,2686.5,2686.0,3.2078]
[1740397185623,0.00557859,2686.5,2686.1,0.577]
[1740397185927,0.00557859,2686.5,2686.3,3.2078]
[1740397186134,0.00557859,2686.5,2686.4,0.5487]
[1740397187934,0.00557859,2686.5,2686.4,0.84309549]
[1740397189528,0.00557859,2686.5,2686.4,0.5487]
[1740397189725,0.00557859,2686.5,2686.3,3.2078]
[1740397189930,0.00557859,2686.5,2686.2,0.5931]
[1740397193230,2.98657859,2686.5,2686.1,0.00557859]
[1740397193432,1.7566,2686.4,2686.1,0.00557859]
[1740397193835,1.1669,2686.4,2686.1,0.55707859]
[1740397194031,0.00557859,2686.5,2686.1,3.76487859]
[1740397194227,0.00557859,2686.5,2686.2,0.5815]
[1740397198432,0.00557859,2686.5,2686.4,3.2078]
[1740397201534,3.7569,2686.9,2686.4,3.2078]
[1740397201836,3.2078,2686.9,2686.4,3.2078]
[1740397202036,3.2078,2686.9,2686.5,0.5472]
[1740397202243,1.7289,2687.5,2686.7,3.2078]
[1740397202541,1.7289,2687.5,2687.0,3.2078]
[1740397202737,0.00557859,2687.4,2687.1,1.7027]
[1740397203537,0.00557859,2687.4,2687.1,4.6837]
[1740397208636,0.00557859,2687.4,2687.1,7.6377]
[1740397209543,0.00557859,2687.4,2687.3,3.2078]
[1740397210043,3.2078,2688.0,2687.3,9.2078]
[1740397210243,3.2078,2688.0,2687.3,3.2078]
[1740397211145,0.00371908,2687.9,2687.3,3.2078]
[1740397212441,0.00371908,2687.9,2687.4,40.8]
[1740397212640,0.00371908,2687.9,2687.5,2.979]
[1740397212846,0.00371908,2687.9,2687.6,1.0984]
[1740397213535,0.00371908,2687.9,2687.6,4.3062]
[1740397213745,0.5614,2688.2,2687.6,4.3062]
[1740397213941,3.2078,2688.7,2687.6,7.2602]
[1740397214143,2.979,2688.6,2687.9,3.2078]
[1740397214346,2.979,2688.6,2688.0,0.5644]
[1740397214553,4.3561,2688.7,2688.1,1.0984]
[1740397214743,2.979,2688.6,2688.1,1.0984]
[1740397214942,4.3561,2688.7,2688.1,1.0984]
[1740397217342,4.3561,2688.7,2688.1,1.40409238]
[1740397221652,4.3561,2688.7,2688.1,1.0984]
[1740397221950,4.3561,2688.7,2688.1,0.5506]
[1740397222247,4.3561,2688.7,2688.0,3.5184]
[1740397224447,4.3561,2688.7,2688.0,0.5644]
[1740397226747,4.3561,2688.7,2687.9,3.2078]
[1740397227448,3.2078,2688.3,2687.6,3.2078]
[1740397227655,4.7115,2688.2,2687.6,3.2078]
[1740397227852,4.7115,2688.2,2687.5,0.00557859]
[1740397228153,3.2078,2688.0,2687.5,0.00557859]
[1740397229254,4.7115,2688.2,2687.5,0.00557859]
[1740397230449,1.7335,2688.2,2687.5,0.00557859]
[1740397230651,2.978,2688.1,2687.5,0.00557859]
[1740397230851,4.7115,2688.2,2687.5,0.00557859]
[1740397231451,1.7335,2688.2,2687.7,3.2078]
[1740397231651,4.1229,2688.2,2687.8,1.6548]
[1740397232058,3.53,2688.2,2687.9,40.8]
[1740397232352,3.2078,2688.6,2688.0,3.2078]
[1740397233249,0.5501,2688.5,2688.0,3.2078]
[1740397233451,2.977,2688.4,2688.0,3.2078]
[1740397233957,0.5643,2688.3,2688.0,3.2078]
[1740397234158,0.5604,2688.2,2687.8,1.094]
[1740397234349,0.5604,2688.2,2687.5,3.21337859]
[1740397234550,3.2078,2688.0,2687.5,3.21337859]
[1740397234849,0.5798,2687.9,2687.5,3.21337859]
[1740397235156,0.5798,2687.9,2687.5,0.00557859]
[1740397235455,0.5643,2687.8,2687.5,0.00557859]
[1740397235653,0.5604,2687.7,2687.5,0.00557859]
[1740397235855,2.977,2687.6,2687.5,0.00557859]